Cogmind - Beta 13 @@@ ROGUE MODE // 2024.03.31 @ 23:25:16 Player: Tatsa Result: Destroyed by G-34 Mercenary with Small Laser Performance ------------- Evolutions (0) 0 Regions Visited (1) 200 Robots Destroyed (16) 80 Value Destroyed (339) 339 Prototype IDs (0) 0 Alien Tech Used (0) 0 Bonus (0) 0 TOTAL SCORE: 619 Bonus ------- None Cogmind --------- Core Integrity 0/250 Matter 299/300 Energy 100/100 System Corruption 0% Temperature Cool (12) Movement Hovering (165) Ox1 Location -10/Materials Parts ------- > --- POWER (1) -------- Backup Power I > --- PROPULSION (2) --- Wheel Backup Propulsion I > --- UTILITY (2) ------ Signal Interpreter Backup Plating I > --- WEAPON (2) ------- Particle Gun Assault Rifle > --- INVENTORY (5) ---- Light Nuclear Core Visual Processing Unit Seismic Detector Particle Gun Assault Rifle Peak State ------------ > --- POWER ------------ Light Nuclear Core > --- PROPULSION ------- Wheel > --- UTILITY ---------- Sensor Array Signal Interpreter > --- WEAPON ----------- Particle Gun Assault Rifle > --- INVENTORY -------- Visual Processing Unit Seismic Detector Assault Rifle [Rating: 9] Favorites ----------- Power Light Ion Engine Engine Light Ion Engine Power Core Light Nuclear Core Propulsion Wheel Wheel Wheel Hover Unit Backup Propulsion I Utility Signal Interpreter Device Seismic Detector Processor Signal Interpreter Protection Backup Plating I Weapon Assault Rifle Energy Gun Particle Gun Ballistic Gun Assault Rifle Launcher Grenade Launcher Build | -11 -10 ------- Run | Yrd Mat Slots Evolved . | . . Power . | . . Propulsion . | . . Utility . | . . Weapon . | . . Parts Attached 15 | 8 7 Power 2 | 1 1 Engine 1 | 1 . Core 1 | . 1 Reactor . | . . Propulsion 2 | 2 . Treads . | . . Leg . | . . Wheel 2 | 2 . Hover . | . . Flight . | . . Utility 6 | 2 4 Device 5 | 2 3 Storage . | . . Processor 1 | . 1 Hackware . | . . Protection . | . . Artifact . | . . Weapon 5 | 3 2 Energy Gun 2 | 1 1 Energy Cannon . | . . Ballistic Gun 2 | 2 . Ballistic Cannon . | . . Launcher 1 | . 1 Special Weapon . | . . Impact Weapon . | . . Slashing Weapon . | . . Piercing Weapon . | . . Special Melee Weapon . | . . Unidentified Prototypes . | . . Parts Lost 5 | . 5 Power 2 | . 2 Propulsion 1 | . 1 Utility 1 | . 1 Weapon 1 | . 1 Highest Loss Streak 3 | . 3 To Critical Strikes . | . . Average Slot Usage (%) 83 | . 83 Engine 6 | . 6 Core 3 | . 3 Wheel 19 | . 19 Hover 1 | . 1 Device 14 | . 14 Processor 7 | . 7 Protection 1 | . 1 Energy Gun 7 | . 7 Ballistic Gun 18 | . 18 Naked Turns . | . . Heaviest Build 11 | 9 11 Greatest Support 20 | 20 20 Greatest Overweight (x) 1 | . 1 Average Overweight (x) . | . . Largest Inventory Capacity 5 | 5 5 Average Capacity 5 | 5 5 Most Carried 5 | 5 5 Average Carried 3 | 2 4 Final Capacity 5 | 5 5 Final Carried 5 | 3 5 Class Distribution -------------------- 91% | Mutant 8% | Scavenger-Mutant Dominant Class ---------------- Mutant | -10/Materials Resources | -11 -10 ----------- Run | Yrd Mat Matter Collected 582 | 312 270 Remotely . | . . Salvage Created 480 | 82 398 Parts 26 | 5 21 Haulers Intercepted . | . . Recyclers Shooed . | . . Parts Field Recycled . | . . Retrieved Matter . | . . Parts Self-Destructed . | . . Prevented . | . . Kills | -11 -10 ------- Run | Yrd Mat Combat Hostiles Destroyed 9 | 1 8 Guns 8 | 1 7 AOE 1 | . 1 Classes Destroyed 5 | 2 3 Worker 3 | . 3 Tunneler 2 | 2 . Watcher 2 | . 2 Swarmer 3 | . 3 Grunt 6 | 1 5 Best Kill Streak 8 | 1 8 Combat Bots Only 3 | 1 3 Max Kills in Single Turn 2 | 1 2 Gunslinging 1 | . 1 Exploded 1 | . 1 Melee . | . . Uniques/NPCs Destroyed . | . . Combat | -11 -10 -------- Run | Yrd Mat Hostile Shots Fired 64 | 6 58 Missed 20 | 1 19 Damage Taken 664 | 55 609 Core 256 | 24 232 Absorbed by Shields . | . . Core Remaining (%) 90 | 90 . Volleys Fired 50 | 7 43 Largest 2 | 2 2 Hottest 85 | 40 85 Shots Fired 90 | 14 76 Gun 89 | 14 75 Cannon . | . . Launcher 1 | . 1 Special . | . . Kinetic 81 | 14 67 Thermal 8 | . 8 Explosive 1 | . 1 Electromagnetic . | . . Robot Hit Streak 9 | 8 9 Robot Miss Streak 4 | 3 4 Penetration Max . | . . Secondary Targets 1 | . 1 Max Gunslinging Chain 1 | . 1 Shots Hit Robots 50 | 10 40 Core Hits 22 | 3 19 Critical Kills . | . . Critical Parts Destroyed . | . . Critical Strikes 1 | . 1 Burn 1 | . 1 Melee Attacks . | . . Impact . | . . Slashing . | . . Piercing . | . . Sneak Attacks . | . . Combat Hostiles . | . . Follow-up Attacks . | . . Damage Inflicted 761 | 129 632 Guns 668 | 129 539 Cannons . | . . Explosions 93 | . 93 Melee . | . . Ramming . | . . Kinetic 600 | 129 471 Thermal 68 | . 68 Explosive 93 | . 93 Electromagnetic . | . . Impact . | . . Slashing . | . . Piercing . | . . Highest Corruption . | . . Average Corruption . | . . Corruption Purged . | . . Corruption Blocked . | . . Overload Shots . | . . Overflow Damage 19 | . 19 Projectiles . | . . Explosions 19 | . 19 Melee . | . . Knockbacks . | . . Impact . | . . Kinetic . | . . Secondary . | . . Self-Inflicted Damage 107 | . 107 Shots 1 | . 1 Rammed . | . . Targets Rammed . | . . Kicked . | . . Crushed . | . . Highest Temperature 216 | . 216 Average Temperature 90 | . 90 Received Heat Transfer 234 | 30 204 Siege Activations . | . . Robots Corrupted . | . . Combat Hostiles . | . . Parts Fried . | . . Impact Corruptions . | . . Robots Melted . | . . Combat Hostiles . | . . Parts Melted 1 | . 1 Heat Transferred 222 | . 222 Parts Sabotaged . | . . Parts Stolen . | . . Parts Stripped . | . . Power Chain Reactions . | . . Alert | -11 -10 ------- Run | Yrd Mat Peak Influence 286 | 30 286 Initial 19 | . 19 Average 83 | 15 113 Maximum Alert Level 1 | . 1 Low Security (%) 79 | 100 70 Level 1 20 | . 30 Level 2 . | . . Level 3 . | . . Level 4 . | . . Level 5 . | . . High Security . | . . Max Security . | . . Squads Dispatched 1 | . 1 Investigation 1 | . 1 Extermination . | . . Reinforcement . | . . Assault . | . . Garrison . | . . Intercept . | . . Searches Triggered . | . . Construction Impeded . | . . Haulers Reinforced . | . . Active Scanning Responses . | . . Cargo Convoy Interrupts . | . . Stealth | -11 -10 --------- Run | Yrd Mat Distress Signals 3 | . 3 Communications Jammed . | . . Distress Signals . | . . Times Spotted 18 | 1 17 Peak Tracking Total 4 | 1 4 Tactical Retreats 4 | . 4 Traps | -11 -10 ------- Run | Yrd Mat Traps Triggered 1 | . 1 Indirectly . | . . Trap Hack Attempts . | . . Triggered . | . . Disarmed . | . . Reprogrammed . | . . Reused . | . . Traps Extracted . | . . Installed . | . . Triggered . | . . Machines | -11 -10 ---------- Run | Yrd Mat Machines Disabled 3 | . 3 Max in Single Turn 2 | . 2 Machines Repaired . | . . Machines Dismantled . | . . Machines Sabotaged . | . . Overloaded Fab Kills . | . . Hacking | -11 -10 --------- Run | Yrd Mat Machines Accessed 3 | . 3 Terminals 2 | . 2 Fabricators . | . . Repair Stations 1 | . 1 Recycling Units . | . . Scanalyzers . | . . Garrison Access . | . . Total Hacks 11 | . 11 Successful 6 | . 6 Failed 5 | . 5 Catastrophic . | . . Database Lockouts . | . . Manual . | . . Terminals 8 | . 8 Fabricators . | . . Repair Stations 3 | . 3 Recycling Units . | . . Scanalyzers . | . . Garrison Access . | . . Terminal Hacks 4 | . 4 Record 2 | . 2 Alert Level 1 | . 1 Unreport Threat 1 | . 1 Fabricator Hacks . | . . Repair Station Hacks 2 | . 2 Scan Component 1 | . 1 Refit 1 | . 1 Recycling Unit Hacks . | . . Scanalyzer . | . . Garrison Access Hacks . | . . Unauthorized Hacks . | . . Terminals . | . . Fabricators . | . . Repair Stations . | . . Recycling Units . | . . Scanalyzers . | . . Garrison Access . | . . Data Cores Recovered . | . . Used . | . . Hacking Detections 3 | . 3 Full Trace Events 3 | . 3 Feedback Events . | . . Feedback Blocked . | . . Robot Schematics Acquired . | . . Robots Built . | . . Authchips . | . . Time . | . . Total Robot Build Rating . | . . Part Schematics Acquired . | . . Parts Built . | . . Authchips . | . . Time . | . . Total Part Build Rating . | . . Parts Repaired . | . . Time . | . . Parts Recycled . | . . Recycled Matter . | . . Retrieved Matter . | . . Retrieved Components . | . . Parts Scanalyzed . | . . Part Schematics Acquired . | . . Parts Damaged . | . . Bothacking | -11 -10 ------------ Run | Yrd Mat Used RIF Installer . | . . Robots Hacked . | . . Non-combat . | . . Combat . | . . Robot Hacks Applied . | . . Relay Couplers Released . | . . Fabnet Peak Effective % . | . . Robots Rewired . | . . Allies Hacked . | . . Hacks Repelled . | . . Allies | -11 -10 -------- Run | Yrd Mat Total Allies . | . . Largest Group . | . . Highest-Rated Group . | . . Highest-Rated Ally . | . . Total Orders . | . . Ally Attacks . | . . Total Damage . | . . Kills . | . . Allies Corrupted . | . . Allies Melted . | . . Intel | -11 -10 ------- Run | Yrd Mat Robot Analysis Total . | . . Derelict Logs Recovered . | . . Drone Launches . | . . Drone Recoveries . | . . Exploration | -11 -10 ------------- Run | Yrd Mat Turns Passed 761 | 231 530 Spaces Moved 681 | 246 435 Core 27 | 27 . Treads . | . . Legs . | . . Wheels 620 | 219 401 Hover 34 | . 34 Flight . | . . Fastest Speed 50 | 50 80 Average Speed 84 | 76 88 Slowest Speed 165 | 80 165 Overloaded Moves . | . . Propulsion Burnouts . | . . Robots Hopped . | . . Cave-ins Triggered . | . . Exploration Rate (%) 23 | 8 39 Regions Visited 1 Branch Regions . Pre-discovered Areas . | . . Known Exits Taken . | . . Unknown Exits Taken 1 | 1 . Scrap Searched . | . . Spaces Dug 5 | . 5 Terrain Destroyed 32 | . 32 Melee . | . . Projectile . | . . AOE 32 | . 32 Terrain Rammed . | . . Walls Destroyed . | . . Machines Disabled . | . . Actions | -11 -10 --------- Run | Yrd Mat Total 782 | 274 508 Wait 10 | 3 7 Move 680 | 245 435 Hop . | . . Pick Up 18 | 10 8 Fast Attach 1 | . 1 Attach 13 | 8 5 Detach 4 | 1 3 Swap 1 | . 1 Drop 5 | . 5 Fire 50 | 7 43 Melee . | . . Ram . | . . Kick . | . . Crush . | . . Escape Stasis . | . . Rewire . | . . Trap . | . . Miscellaneous . | . . Route ------- -11/Scrapyard -10/Materials (discovered 2 exits: [*Mat] / [*Min]) History --------- Turn | Location | Event 2 | -11/Scrapyard | Met Revision 17 66 | -11/Scrapyard | Discovered new exit (range 8) 232 | -11/Scrapyard | Entered Materials 318 | -10/Materials | Build established: Mutant 460 | -10/Materials | Core integrity fell below 50% 488 | -10/Materials | Lost 3 parts (1p1n1w) 617 | -10/Materials | Core integrity fell below 20% 649 | -10/Materials | Discovered new exit (range 16) 687 | -10/Materials | Discovered new exit (range 16) 762 | -10/Materials | Destroyed by G-34 Mercenary with Small Laser Last Messages --------------- Connecting with Repair Station... >>Refit Scanning configuration... Attaching: Backup Power I x1 Backup Propulsion I x1 Backup Plating I x1 Different forms of propulsion may not be used simultaneously, Wheel automatically deactivated. >>Scan(Particle Gun) Scanning Particle Gun... Ready to Repair: Particle Gun Rating: 2 Time: 32 ALERT: Suspicious activity at Repair Station M001. Dispatching Investigation squad. [Achievement: One Hack Too Far] [Achievement: First Step to Greatness] Map ----- +----------------------------------------------------+ | | | | | | | | | | | ????????????????????????????????? | | ????????????????????????????????? | | ????????????????????????????????? | | ????????????????????????????????? | | ????????????????????????????????? | | ????????????????????????????????? | | ????????????????????????????????? | | ????????????????????????????????? | | ????????????????????????????????? | | ???????????????????????#####????? | | ??????????????????????##"""##???? | | ?????????????????????##"|||"##??? | | ?????????????????????#"" ""#??? | | ?????????????????????# #??? | | ?????????????????????# < #??? | | ?????????????????????# #??? | | ?????????????????????# #??? | | ??????????????#??????## #???? | | ?????????????? ######### ##???? | | ?????????????? ## # #????? | | ????????????## ## + @ +????? | | ????????????# # " " # #????? | | ????######### # "R" # #????? | | ???? # # """ # #????? | | ????? ## # #????? | | ??????? #####+### #????? | | ????????# #???# #?# #????? | | ????????# #???# #?# #????? | | ????????# #???# #?#gg #????? | | ??????# ##### ###g # ??? | | ??????# + ?? | | ??????# #????? | | ??????# #????? | | ??????# ###+######## #????? | | #?????# # ###?# #????? | | #?????# #?# #????? | | #?????+ #?# #????? | | #?????# #?# #????? | | #?????# #?# #????? | | #?????# #?# #????? | | #?????# #?# #????? | | #?????# #?# #????? | | #?????# #?# #????? | | ####### """ #?# #????? | | # """ ##### ###??? | +----------------------------------------------------+ Best States ------------- Heat Dissipation 35 Energy Generation 14 Energy Capacity 160 Matter Stores 300 Matter Capacity 300 Sight Range 16 Robot Scan Range 14 Terrain Scan Density 10 ECM Strength 1 Armor Coverage 80 Evasion (%) 50 Item Schematics ----------------- None Robot Schematics ------------------ None Fabricated ------------ Nothing Alien Tech Used ----------------- None Achievements -------------- Everything Is Under Control First Step to Greatness One Hack Too Far Challenges ------------ None Game ------ Seed DynamicCatalystDevice Manual? 0 Play Time 00:23:27 Cumulative 0.3 hours Start 2024.03.31 @ 23:01:38 End 2024.03.31 @ 23:25:16 Sessions 1 Manual Loads 0 Difficulty Rogue Special Mode None Game No. 1 Rogue 1 Adventurer 0 Explorer 0 Win Type - Total 0 Types 0/0/0/0/0/0/0/0/0 Lore% 0 Gallery% 1 Achievement% 1 Wizard Run 0 Options --------- Layout 1 ASCII 0 Keyboard 0 Movement Mouse Keybinds 0 Fullscreen 1 Font 32/SmallcapsGlow Map View 50x35 Zoom Use 0% Tactical HUD 0 Map Filters NONE Filters NONE Steam 1 RUN: fdce284b-04a0-456c-9aaf-0e5e07baad03